fUSD/lending_fUSD_20250208
["ID","MTS","AMOUNT","RATE_DAILY","PERIOD"]
[352278059,1739025052867,-500.0,0.00010932,2]
[352278060,1739025052876,-500.0,0.00010932,2]
[352278061,1739025052885,-569.14,0.00010932,2]
[352278062,1739025052894,-500.0,0.00010932,2]
[352278063,1739025052903,-809.17,0.00010932,2]
[352278064,1739025052912,-500.0,0.00010932,2]
[352278065,1739025052921,-589.64,0.00010932,2]
[352278066,1739025052931,-314.43439485,0.00010932,2]
[352278067,1739025052940,-500.0,0.00010932,2]
[352278068,1739025052958,-500.0,0.00010932,2]
[352278069,1739025052967,-659.99,0.00010932,2]
[352278070,1739025052977,-500.0,0.00010932,2]
[352278071,1739025052987,-500.0,0.00010932,2]
[352278072,1739025052999,-500.0,0.00010932,2]
[352278073,1739025053008,-546.45,0.00010932,2]
[352278074,1739025053017,-500.0,0.00010932,2]
[352278075,1739025053027,-500.0,0.00010932,2]
[352278076,1739025053036,-1345.984938,0.00010932,2]
[352278077,1739025053045,-664.65,0.00010932,2]
[352278078,1739025053054,-571.4440709,0.00010932,2]
[352278079,1739025053063,-500.0,0.00010932,2]
[352278080,1739025053072,-728.2,0.00010932,2]
[352278081,1739025053082,-500.0,0.00010932,2]
[352278082,1739025053091,-545.64,0.00010932,2]
[352278083,1739025053100,-1109.452651,0.00010932,2]
[352278084,1739025053110,-500.0,0.00010932,2]
[352278085,1739025053119,-500.0,0.00010932,2]
[352278086,1739025053129,-776.48,0.00010932,2]
[352278087,1739025053139,-500.0,0.00010932,2]
[352278088,1739025053148,-500.0,0.00010932,2]
[352278089,1739025053157,-839.57,0.00010932,2]
[352278090,1739025053166,-539.31,0.00010932,2]
[352278091,1739025053177,-557.4,0.00010932,2]
[352278092,1739025053187,-500.0,0.00010932,2]
[352278093,1739025053202,-579.03,0.00010932,2]
[352278094,1739025053212,-553.21,0.00010932,2]
[352278095,1739025053222,-578.44,0.00010932,2]
[352278096,1739025053231,-500.0,0.00010932,2]
[352278097,1739025053241,-552.84,0.00010932,2]
[352278098,1739025053251,-549.62,0.00010932,2]
[352278099,1739025053260,-500.0,0.00010932,2]
[352278100,1739025053269,-500.0,0.00010932,2]
[352278101,1739025053279,-1582.96,0.00010932,2]
[352278102,1739025053289,-1658.92,0.00010932,2]
[352278103,1739025053298,-500.0,0.00010932,2]
[352278104,1739025053308,-610.08,0.00010932,2]
[352278105,1739025053318,-500.0,0.00010932,2]
[352278106,1739025053327,-757.03,0.00010932,2]
[352278107,1739025053338,-590.06,0.00010932,2]
[352278108,1739025053347,-540.61,0.00010932,2]
[352278109,1739025053357,-532.91,0.00010932,2]
[352278110,1739025053366,-1035.53,0.00010932,2]
[352278111,1739025053376,-500.0,0.00010932,2]
[352278112,1739025053386,-500.0,0.00010932,2]
[352278113,1739025053395,-500.0,0.00010932,2]
[352278114,1739025053410,-635.53,0.00010932,2]
[352278115,1739025053419,-948.44,0.00010932,2]
[352278116,1739025053428,-787.27,0.00010932,2]
[352278117,1739025053438,-726.37,0.00010932,2]
[352278118,1739025053453,-500.0,0.00010932,2]
[352278119,1739025053464,-793.68,0.00010932,2]
[352278120,1739025053473,-907.45,0.00010932,2]
[352278121,1739025053483,-516.99,0.00010932,2]
[352278122,1739025053493,-818.09,0.00010932,2]
[352278123,1739025053502,-596.2,0.00010932,2]
[352278124,1739025053512,-808.28,0.00010932,2]
[352278125,1739025053522,-2003.11,0.00010932,2]
[352278126,1739025053532,-1081.25,0.00010932,2]
[352278127,1739025053541,-1028.26,0.00010932,2]
[352278128,1739025053551,-724.3,0.00010932,2]
[352278129,1739025053560,-678.45,0.00010932,2]
[352278130,1739025053569,-795.03,0.00010932,2]
[352278131,1739025053578,-976.43,0.00010932,2]
[352278132,1739025053588,-590.12,0.00010932,2]
[352278133,1739025053598,-1423.24,0.00010932,2]
[352278134,1739025053607,-1327.03,0.00010932,2]
[352278135,1739025053617,-3374.39,0.00010932,2]
[352278136,1739025053626,-500.0,0.00010932,2]
[352278137,1739025053636,-500.0,0.00010932,2]
[352278138,1739025053645,-1092.01,0.00010932,2]
[352278139,1739025053655,-1416.11,0.00010932,2]
[352278140,1739025053664,-1652.06,0.00010932,2]
[352278141,1739025053674,-934.99,0.00010932,2]
[352278142,1739025053683,-2394.35,0.00010932,2]
[352278143,1739025053695,-579.55,0.00010932,2]
[352278144,1739025053705,-1109.71,0.00010932,2]
[352278145,1739025053715,-500.0,0.00010932,2]
[352278146,1739025053724,-500.0,0.00010932,2]
[352278147,1739025053733,-1006.47,0.00010932,2]
[352278148,1739025053743,-537.67,0.00010932,2]
[352278149,1739025053752,-1531.99,0.00010932,2]
[352278150,1739025053762,-500.0,0.00010932,2]
[352278151,1739025053772,-761.86,0.00010932,2]
[352278152,1739025053781,-500.0,0.00010932,2]
[352278153,1739025053790,-772.88,0.00010932,2]
[352278154,1739025053799,-2141.05,0.00010932,2]
[352278155,1739025053809,-500.0,0.00010932,2]
[352278156,1739025053818,-850.74,0.00010932,2]
[352278157,1739025053830,-527.11,0.00010932,2]
[352278158,1739025053841,-629.37,0.00010932,2]
[352278159,1739025053851,-871.05,0.00010932,2]
[352278160,1739025053861,-817.37,0.00010932,2]
[352278161,1739025053871,-1275.15,0.00010932,2]
[352278162,1739025053880,-154.363055,0.00010932,2]
[352278163,1739025053890,-500.0,0.00010932,2]
[352278164,1739025053900,-557.63,0.00010932,2]
[352278165,1739025053909,-810.91,0.00010932,2]
[352278166,1739025053918,-500.0,0.00010932,2]
[352278167,1739025053928,-1043.74,0.00010932,2]
[352278168,1739025053938,-740.47,0.00010932,2]
[352278169,1739025053949,-1774.0,0.00010933,2]
[352278170,1739025053970,-500.0,0.00010933,2]
[352278171,1739025053979,-500.0,0.00010933,2]
[352278172,1739025053989,-500.0,0.00010933,2]
[352278173,1739025053998,-500.0,0.00010933,2]
[352278174,1739025054007,-500.0,0.00010933,2]
[352278175,1739025054017,-500.0,0.00010933,2]
[352278176,1739025054027,-178.02094351,0.00010933,2]
[352278177,1739025054036,-500.0,0.00010933,2]
[352278178,1739025054045,-500.0,0.00010933,2]
[352278179,1739025054055,-500.0,0.00010933,2]
[352278180,1739025054064,-500.0,0.00010933,2]
[352278181,1739025054073,-500.0,0.00010933,2]
[352278182,1739025054082,-500.0,0.00010933,2]
[352278183,1739025054091,-500.0,0.00010933,2]
[352278184,1739025054100,-500.0,0.00010933,2]
[352278185,1739025054110,-500.0,0.00010933,2]
[352278186,1739025054119,-1455.89,0.00010933,2]
[352278187,1739025054128,-500.0,0.00010933,2]
[352278188,1739025054138,-500.0,0.00010933,2]
[352278189,1739025054147,-979.5,0.00010933,2]
[352278190,1739025054157,-772.56,0.00010933,2]
[352278191,1739025054167,-586.70237171,0.00010933,2]
[352278192,1739025054176,-982.12,0.00010933,2]
[352278193,1739025054186,-967.68,0.00010933,2]
[352278194,1739025054197,-777.57,0.00010933,2]
[352278195,1739025054207,-643.24992146,0.00010933,2]
[352278196,1739025054216,-1125.94,0.00010933,2]
[352278197,1739025054225,-1703.24,0.00010933,2]
[352278198,1739025054235,-525.07,0.00010933,2]
[352278199,1739025054244,-500.0,0.00010933,2]
[352278200,1739025054253,-533.45918263,0.00010933,2]
[352278201,1739025054262,-4892.73,0.00010933,2]
[352278202,1739025054272,-500.0,0.00010933,2]
[352278203,1739025054281,-500.0,0.00010933,2]
[352278204,1739025054290,-500.0,0.00010933,2]
[352278205,1739025054300,-515.5,0.00010933,2]
[352278206,1739025054309,-500.0,0.00010933,2]
[352278207,1739025054319,-816.25,0.00010933,2]
[352278208,1739025054328,-500.0,0.00010933,2]
[352278209,1739025054338,-704.27,0.00010933,2]
[352278210,1739025054347,-500.0,0.00010933,2]
[352278211,1739025054356,-725.03,0.00010933,2]
[352278212,1739025054365,-500.0,0.00010933,2]
[352278213,1739025054375,-632.33,0.00010933,2]
[352278214,1739025054384,-1465.48,0.00010933,2]
[352278215,1739025054394,-2910.93,0.00010933,2]
[352278216,1739025054404,-500.0,0.00010933,2]
[352278217,1739025054418,-515.89,0.00010933,2]
[352278218,1739025054427,-1138.83,0.00010933,2]
[352278219,1739025054436,-1267.49,0.00010933,2]
[352278220,1739025054446,-1957.7,0.00010933,2]
[352278221,1739025054455,-1000.0,0.00010933,2]
[352278222,1739025054464,-750.51,0.00010933,2]
[352278223,1739025054474,-500.0,0.00010933,2]
[352278224,1739025054483,-605.62,0.00010933,2]
[352278225,1739025054496,-1299.02,0.00010933,2]
[352278226,1739025054506,-1908.09,0.00010933,2]
[352278227,1739025054515,-500.0,0.00010933,2]
[352278228,1739025054524,-1549.75,0.00010933,2]
[352278229,1739025054533,-500.0,0.00010933,2]
[352278230,1739025054543,-5593.84,0.00010933,2]
[352278231,1739025054553,-500.0,0.00010933,2]
[352278232,1739025054563,-500.0,0.00010934,2]
[352278233,1739025054571,-500.0,0.00010934,2]
[352278234,1739025054581,-500.0,0.00010934,2]
[352278235,1739025054590,-500.0,0.00010934,2]
[352278236,1739025054601,-500.0,0.00010934,2]
[352278237,1739025054610,-500.0,0.00010934,2]
[352278238,1739025054620,-632.84,0.00010934,2]
[352278239,1739025054629,-558.60482003,0.00010934,2]
[352278240,1739025054638,-500.0,0.00010934,2]
[352278241,1739025054648,-674.84,0.00010934,2]
[352278242,1739025054657,-500.0,0.00010934,2]
[352278243,1739025054666,-540.28,0.00010934,2]
[352278244,1739025054676,-692.43,0.00010934,2]
[352278245,1739025054685,-500.0,0.00010934,2]
[352278246,1739025054697,-749.92,0.00010934,2]
[352278247,1739025054706,-502.37,0.00010934,2]
[352278248,1739025054715,-500.0,0.00010934,2]
[352278249,1739025054724,-500.0,0.00010934,2]
[352278250,1739025054733,-314.41,0.00010934,2]
[352278251,1739025054743,-605.64,0.00010934,2]
[352278252,1739025054752,-500.0,0.00010934,2]
[352278253,1739025054762,-500.0,0.00010934,2]
[352278254,1739025054772,-500.0,0.00010934,2]
[352278255,1739025054781,-500.0,0.00010934,2]
[352278256,1739025054790,-593.05216644,0.00010934,2]
[352278257,1739025054799,-500.0,0.00010934,2]
[352278258,1739025054808,-500.0,0.00010934,2]
[352278259,1739025054818,-500.0,0.00010934,2]
[352278260,1739025054827,-500.0,0.00010934,2]
[352278261,1739025054836,-500.0,0.00010934,2]
[352278262,1739025054845,-664.42,0.00010934,2]
[352278263,1739025054853,-511.67,0.00010934,2]
[352278264,1739025054862,-500.0,0.00010934,2]
[352278265,1739025054871,-500.0,0.00010934,2]
[352278266,1739025054880,-500.0,0.00010934,2]
[352278267,1739025054889,-655.7,0.00010934,2]
[352278268,1739025054898,-528.51,0.00010934,2]
[352278269,1739025054907,-653.88,0.00010934,2]
[352278270,1739025054916,-689.31,0.00010934,2]
[352278271,1739025054925,-500.0,0.00010934,2]
[352278272,1739025054934,-500.0,0.00010934,2]
[352278273,1739025054945,-500.0,0.00010934,2]
[352278274,1739025054954,-500.0,0.00010934,2]
[352278275,1739025054963,-500.0,0.00010934,2]
[352278276,1739025054972,-941.99,0.00010934,2]
[352278277,1739025054981,-500.0,0.00010934,2]
[352278278,1739025054991,-500.0,0.00010934,2]
[352278279,1739025055000,-500.0,0.00010934,2]
[352278280,1739025055009,-654.77,0.00010934,2]
[352278281,1739025055018,-500.0,0.00010934,2]
[352278282,1739025055027,-500.0,0.00010934,2]
[352278283,1739025055037,-624.88,0.00010934,2]
[352278284,1739025055046,-500.0,0.00010934,2]
[352278285,1739025055055,-621.59,0.00010934,2]
[352278286,1739025055064,-756.53,0.00010934,2]
[352278287,1739025055074,-687.39,0.00010934,2]
[352278288,1739025055084,-500.0,0.00010934,2]
[352278289,1739025055094,-500.0,0.00010934,2]
[352278290,1739025055103,-500.0,0.00010934,2]
[352278291,1739025055113,-725.88,0.00010934,2]
[352278292,1739025055122,-500.0,0.00010934,2]
[352278293,1739025055132,-704.43,0.00010934,2]
[352278294,1739025055141,-762.52,0.00010934,2]
[352278295,1739025055150,-500.0,0.00010935,2]
[352278296,1739025055159,-500.0,0.00010935,2]
[352278297,1739025055168,-500.0,0.00010935,2]
[352278298,1739025055178,-500.0,0.00010935,2]
[352278299,1739025055188,-500.0,0.00010935,2]
[352278300,1739025055200,-547.89,0.00010935,2]
[352278301,1739025055211,-500.0,0.00010935,2]
[352278302,1739025055221,-500.0,0.00010935,2]
[352278303,1739025055230,-500.0,0.00010935,2]
[352278304,1739025055240,-500.0,0.00010935,2]
[352278305,1739025055249,-500.0,0.00010958,2]
[352278306,1739025055259,-704.1,0.00010958,2]
[352278307,1739025055269,-820.46,0.00010958,2]
[352278308,1739025055278,-2000.0,0.00010959,2]
[352278309,1739025055288,-200.0,0.00010959,2]
[352278310,1739025055297,-150.0,0.00010959,2]
[352278311,1739025055307,-490.4,0.00010959,2]
[352278312,1739025055316,-1000.0,0.0001097,2]
[352278313,1739025055326,-1000.0,0.0001097,2]
[352278314,1739025055335,-1000.0,0.0001097,2]
[352278315,1739025055345,-1000.0,0.0001097,2]
[352278316,1739025055355,-1000.0,0.0001097,2]
[352278317,1739025055364,-500.0,0.0001097,2]
[352278318,1739025055374,-500.0,0.0001097,2]
[352278319,1739025055383,-500.0,0.0001097,2]
[352278320,1739025055393,-782.99781256,0.0001097,2]
[352278321,1739025055406,-1000.0,0.0001097,2]
[352278322,1739025055416,-500.0,0.0001097,2]
[352278323,1739025055426,-500.0,0.00010973,2]
[352278324,1739025055436,-666.0,0.00010979,2]
[352278325,1739025055447,-690190.23721524,0.0001098,2]
[352278326,1739025055456,-1999.61987127,0.0001099,2]
[352278327,1739025055466,-289.60227,0.00010992,2]
[352278328,1739025055476,-1013.63465895,0.00010994,2]
[352278329,1739025055485,-500.0,0.00010998,2]
[352278330,1739025055500,-500.0,0.00010998,2]
[352278331,1739025055515,-500.0,0.00010998,2]
[352278332,1739025055526,-500.0,0.00010998,2]
[352278333,1739025055536,-637.14,0.00010998,2]
[352278334,1739025055546,-500.0,0.00010998,2]
[352278335,1739025055556,-4602.3068068,0.00010999,2]
[352278336,1739025055566,-2000.0,0.00010999,2]
[352278337,1739025055578,-2000.0,0.00010999,2]
[352278338,1739025055589,-2000.0,0.00010999,2]
[352278339,1739025055599,-2000.0,0.00010999,2]
[352278340,1739025055609,-500.0,0.00010999,2]
[352278341,1739025055619,-500.0,0.00010999,2]
[352278342,1739025055628,-500.0,0.00010999,2]
[352278343,1739025055637,-500.0,0.00010999,2]
[352278344,1739025055647,-500.0,0.00010999,2]
[352278345,1739025055656,-500.0,0.00010999,2]
[352278346,1739025055666,-522.83,0.00010999,2]
[352278347,1739025055675,-6657.76765716,0.00010999,2]
[352278348,1739025055684,-500.0,0.00010999,2]
[352278349,1739025055695,-500.0,0.00010999,2]
[352278350,1739025055705,-500.0,0.00010999,2]
[352278351,1739025055715,-500.0,0.00010999,2]
[352278352,1739025055725,-500.0,0.00010999,2]
[352278353,1739025055735,-500.0,0.00010999,2]
[352278354,1739025055744,-500.0,0.00010999,2]
[352278355,1739025055753,-500.0,0.00010999,2]
[352278356,1739025055762,-500.0,0.00010999,2]
[352278357,1739025055772,-500.0,0.00010999,2]
[352278358,1739025055782,-500.0,0.00010999,2]
[352278359,1739025055791,-500.0,0.00010999,2]
[352278360,1739025055800,-337.22036852,0.00010999,2]
[352278361,1739025055809,-300.0,0.00010999,2]
[352278362,1739025055818,-300.0,0.00010999,2]
[352278363,1739025055827,-300.0,0.00010999,2]
[352278364,1739025055837,-2912.82467326,0.00011,2]
[352278365,1739025055847,-1572424.00094459,0.00011,2]
[352278366,1739025056234,-500.0,0.00010473,2]
[352278367,1739025056244,-565.56,0.00010795,2]
[352278368,1739025056254,-1189.32152453,0.00010902,2]
[352278369,1739025056267,-635.67847547,0.00010902,2]
[352278370,1739025056277,-1354.46152453,0.00011,2]
[352278371,1739025056288,-392396.24859044,0.00011,2]
[352278372,1739025056744,-500.0,9.999e-05,2]
[352278373,1739025056753,-500.0,0.00010199,2]
[352278374,1739025056763,-500.0,0.00010336,2]
[352278375,1739025056773,-500.0,0.00010473,2]
[352278376,1739025056783,-500.0,0.0001061,2]
[352278377,1739025056793,-500.0,0.0001061,2]
[352278378,1739025056802,-500.0,0.00010747,2]
[352278379,1739025056811,-500.0,0.00010747,2]
[352278380,1739025056820,-500.0,0.00010884,2]
[352278381,1739025056830,-565.56,0.00010932,2]
[352278382,1739025056839,-22818.62988398,0.00011,2]
[352278383,1739025056853,-4217.54015466,0.00011,2]
[352278384,1739025056868,-1891.83830736,0.00011,2]
[352278385,1739025056882,-1740.0911033,0.00011,2]
[352278386,1739025056895,-1199.30233872,0.00011,2]
[352278387,1739025056907,-2821.7,0.00011,2]
[352278388,1739025056924,-942.46523803,0.00011,2]
[352278389,1739025056936,-494.78634277,0.00011,2]
[352278390,1739025057491,-438.68061457,0.00010384,2]
[352278391,1739025058257,-500.0,9.999e-05,2]
[352278392,1739025058267,-500.0,9.999e-05,2]
[352278393,1739025058276,-500.0,9.999e-05,2]
[352278394,1739025058286,-500.0,9.999e-05,2]
[352278395,1739025058295,-500.0,0.00010249,2]
[352278396,1739025058305,-61.31938543,0.00010384,2]
[352278397,1739025058315,-437.23188702,0.00010386,2]
[352278398,1739025058333,-62.76811298,0.00010386,2]
[352278399,1739025058342,-500.0,0.00010521,2]
[352278400,1739025058351,-260.45,0.00010523,2]
[352278401,1739025058361,-500.0,0.00010658,2]
[352278402,1739025058371,-500.0,0.00010795,2]
[352278403,1739025058380,-500.0,0.00010884,2]
[352278404,1739025058390,-500.0,0.00010932,2]
[352278405,1739025058400,-7863.85045539,0.00011,2]
[352278406,1739025059055,-500.0,9.999e-05,2]
[352278407,1739025059065,-254.01806846,0.00010136,2]
[352278408,1739025059173,-245.98193154,0.00010136,2]
[352278409,1739025059183,-500.0,0.00010199,2]
[352278410,1739025059192,-500.0,0.00010249,2]
[352278411,1739025059203,-500.0,0.00010273,2]
[352278412,1739025059212,-404.02263627,0.00010336,2]
[352278413,1739025059317,-95.97736373,0.00010336,2]
[352278414,1739025059327,-500.0,0.00010384,2]
[352278415,1739025059336,-500.0,0.00010384,2]
[352278416,1739025059346,-500.0,0.00010386,2]
[352278417,1739025059355,-500.0,0.0001041,2]
[352278418,1739025059365,-500.0,0.00010473,2]
[352278419,1739025059374,-500.0,0.00010521,2]
[352278420,1739025059384,-500.0,0.00010547,2]
[352278421,1739025059397,-500.0,0.00010658,2]
[352278422,1739025059407,-500.0,0.00010795,2]
[352278423,1739025059419,-500.0,0.00010932,2]
[352278424,1739025059429,-65346.10875171,0.00011,2]
[352278425,1739025059517,-505.45710679,0.00010684,2]
[352278426,1739025059526,-1963.45289321,0.00011,2]
[352278427,1739025133980,10000.0,8.836e-05,2]
[352278428,1739025381274,200.0,0.0002,120]
[352278430,1739025655761,-150.0,8.835e-05,2]
[352278431,1739025655783,-9850.0,8.836e-05,2]
[352278432,1739025659663,-10000.0,8.836e-05,2]
[352278433,1739025660857,-10000.0,8.836e-05,2]
[352278434,1739025668495,-300.0,8.835e-05,2]
[352278435,1739025668517,-9700.0,8.836e-05,2]
[352278436,1739025670284,-10000.0,8.836e-05,2]
[352278437,1739025677014,-10000.0,8.836e-05,2]
[352278438,1739025678456,-10000.0,8.836e-05,2]
[352278439,1739025679580,-6077.3909,8.836e-05,2]
[352278440,1739025679604,-3922.6091,8.836e-05,2]
[352278441,1739025680596,-1760.7104,8.836e-05,2]
[352278442,1739025680621,-8239.2896,8.836e-05,2]
[352278443,1739025691906,-2615.5912,8.836e-05,2]
[352278444,1739025691928,-3212.4088,8.836e-05,2]
[352278446,1739026231852,-935.0,8.219e-05,2]
[352278447,1739026231863,-150.0,8.835e-05,2]
[352278448,1739026231872,-2071.59999991,8.836e-05,2]
[352278449,1739026231893,-1582.22003,8.836e-05,2]
[352278450,1739026232036,-1384.04999998,8.836e-05,2]
[352278451,1739026232205,-576.47308612,8.836e-05,2]
[352278452,1739026232217,-4697.06688399,8.836e-05,2]
[352278453,1739026232227,-6360.36965012,8.836e-05,2]
[352278454,1739026232238,-1396.50221221,8.836e-05,2]
[352278455,1739026232249,-5148.34263767,8.836e-05,2]
[352278456,1739026232258,-1540.6557,8.836e-05,2]
[352278457,1739026232268,-2652.07610302,8.836e-05,2]
[352278714,1739026237782,-781.11970919,8.836e-05,2]
[352278715,1739026237835,-941.53953476,8.836e-05,2]
[352278716,1739026237846,-411.11675303,8.836e-05,2]
[352278717,1739026237855,-3570.966671,8.836e-05,2]
[352278718,1739026237866,-500.0,8.851e-05,2]
[352278719,1739026237875,-345.256,8.973e-05,2]
[352278720,1739026237885,-1698.63,9.371e-05,2]
[352278721,1739026237894,-250.0,9.371e-05,2]
[352278722,1739026237903,-1000.0,9.371e-05,2]
[352278723,1739026237913,-150.0,9.397e-05,2]
[352278724,1739026237923,-329.22,9.419e-05,2]
[352278725,1739026237933,-169.55,9.652e-05,2]
[352278726,1739026237943,-255.0,9.718e-05,2]
[352278727,1739026237952,-150.0,9.789e-05,2]
[352278728,1739026237961,-150.0,9.789e-05,2]
[352278729,1739026237971,-1013.63465895,9.998e-05,2]
[352278730,1739026237981,-684.67,9.998e-05,2]
[352278731,1739026237990,-1173.27,9.998e-05,2]
[352278732,1739026238000,-2260.43,9.998e-05,2]
[352278733,1739026238009,-983.42,9.998e-05,2]
[352278734,1739026238019,-1006.09,9.998e-05,2]
[352278735,1739026238029,-1671.41,9.998e-05,2]
[352278736,1739026238038,-1909.26,9.998e-05,2]
[352278737,1739026238047,-1507.28,9.998e-05,2]
[352278738,1739026238056,-500.0,9.998e-05,2]
[352278739,1739026238065,-513.48,9.998e-05,2]
[352278740,1739026238074,-1611.15,9.998e-05,2]
[352278741,1739026238083,-1246.73,9.998e-05,2]
[352278742,1739026238093,-764.88,9.998e-05,2]
[352278743,1739026238102,-2573.5,9.998e-05,2]
[352278744,1739026238111,-1842.63,9.998e-05,2]
[352278745,1739026238121,-2441.09,9.998e-05,2]
[352278746,1739026238131,-1151.35,9.998e-05,2]
[352278747,1739026238140,-965.47,9.998e-05,2]
[352278748,1739026238150,-500.0,9.998e-05,2]
[352278749,1739026238159,-500.0,9.998e-05,2]
[352278750,1739026238169,-1067.88,9.998e-05,2]
[352278751,1739026238178,-500.0,9.998e-05,2]
[352278752,1739026238188,-2566.83,9.998e-05,2]
[352278753,1739026238197,-500.0,9.998e-05,2]
[352278754,1739026238206,-520.29,9.998e-05,2]
[352278755,1739026238215,-500.22409697,9.998e-05,2]
[352278756,1739026238224,-690.89,9.998e-05,2]
[352278757,1739026238234,-970.99,9.998e-05,2]
[352278758,1739026238243,-500.0,9.998e-05,2]
[352278759,1739026238252,-1873.84,9.998e-05,2]
[352278760,1739026238261,-507.02,9.998e-05,2]
[352278761,1739026238271,-500.0,9.998e-05,2]
[352278762,1739026238280,-500.0,9.999e-05,2]
[352278763,1739026238290,-500.0,9.999e-05,2]
[352278764,1739026238299,-500.0,9.999e-05,2]
[352278765,1739026238308,-500.0,9.999e-05,2]
[352278766,1739026238317,-500.0,9.999e-05,2]
[352278767,1739026238326,-184.57200651,9.999e-05,2]
[352278769,1739026238335,-500.0,9.999e-05,2]
[352278771,1739026238344,-500.0,9.999e-05,2]
[352278774,1739026238354,-500.0,9.999e-05,2]
[352278776,1739026238363,-500.0,9.999e-05,2]
[352278778,1739026238372,-500.0,9.999e-05,2]
[352278780,1739026238381,-500.0,9.999e-05,2]
[352278782,1739026238391,-500.0,9.999e-05,2]
[352278784,1739026238400,-500.0,9.999e-05,2]
[352278786,1739026238409,-500.0,9.999e-05,2]
[352278788,1739026238419,-500.0,9.999e-05,2]
[352278790,1739026238429,-500.0,9.999e-05,2]
[352278792,1739026238438,-500.0,9.999e-05,2]
[352278794,1739026238448,-500.0,9.999e-05,2]
[352278796,1739026238457,-500.0,9.999e-05,2]
[352278798,1739026238466,-500.0,9.999e-05,2]
[352278800,1739026238475,-500.0,9.999e-05,2]
[352278802,1739026238484,-500.0,9.999e-05,2]
[352278804,1739026238493,-500.0,9.999e-05,2]
[352278806,1739026238502,-500.0,9.999e-05,2]
[352278808,1739026238512,-500.0,9.999e-05,2]
[352278810,1739026238521,-500.0,9.999e-05,2]
[352278812,1739026238530,-500.0,9.999e-05,2]
[352278814,1739026238540,-500.0,9.999e-05,2]
[352278816,1739026238553,-500.0,9.999e-05,2]
[352278818,1739026238562,-500.0,9.999e-05,2]
[352278820,1739026238571,-500.0,9.999e-05,2]
[352278822,1739026238581,-500.0,9.999e-05,2]
[352278824,1739026238590,-500.0,9.999e-05,2]
[352278826,1739026238599,-500.0,9.999e-05,2]
[352278828,1739026238609,-500.0,9.999e-05,2]
[352278830,1739026238619,-500.0,9.999e-05,2]
[352278832,1739026238629,-500.0,9.999e-05,2]
[352278834,1739026238639,-500.0,9.999e-05,2]
[352278836,1739026238648,-500.0,9.999e-05,2]
[352278838,1739026238658,-500.0,9.999e-05,2]
[352278840,1739026238667,-500.0,9.999e-05,2]
[352278842,1739026238678,-500.0,9.999e-05,2]
[352278844,1739026238692,-500.0,9.999e-05,2]
[352278846,1739026238707,-500.0,9.999e-05,2]
[352278848,1739026238718,-500.0,9.999e-05,2]
[352278851,1739026238727,-500.0,9.999e-05,2]
[352278853,1739026238736,-500.0,9.999e-05,2]
[352278854,1739026238747,-500.0,9.999e-05,2]
[352278857,1739026238756,-500.0,9.999e-05,2]
[352278859,1739026238766,-500.0,9.999e-05,2]
[352278861,1739026238775,-500.0,9.999e-05,2]
[352278862,1739026238785,-500.0,9.999e-05,2]
[352278865,1739026238795,-500.0,9.999e-05,2]
[352278867,1739026238804,-500.0,9.999e-05,2]